fUSD/lending_fUSD_20240624
["ID","MTS","AMOUNT","RATE_DAILY","PERIOD"]
[330324043,1719258180447,-500.0,0.00044383,120]
[330324044,1719258180483,-500.0,0.00044383,120]
[330324045,1719258180518,-500.0,0.00044383,120]
[330324046,1719258180555,-500.0,0.00044383,120]
[330324047,1719258180592,-960.39,0.00044383,120]
[330324048,1719258180632,-500.0,0.00044383,120]
[330324049,1719258180674,-669.18,0.00044383,120]
[330324050,1719258180711,-3969.48,0.00044383,120]
[330324051,1719258180745,-500.0,0.00044383,120]
[330324052,1719258180781,-500.0,0.00044383,120]
[330324053,1719258180817,-500.0,0.00044383,120]
[330324054,1719258180852,-1311.04,0.00044383,120]
[330324055,1719258180886,-500.0,0.00044383,120]
[330324056,1719258180924,-500.0,0.00044383,120]
[330324057,1719258180957,-497.73559253,0.00044383,120]
[330324058,1719258180993,-500.0,0.00044383,120]
[330324059,1719258181026,-6812.46,0.00044383,120]
[330324060,1719258181061,-21055.29,0.00044383,120]
[330324061,1719258181098,-500.0,0.00044383,120]
[330324062,1719258181132,-4879.12,0.00044383,120]
[330324063,1719258181170,-500.0,0.00044383,120]
[330324064,1719258181203,-1621.33,0.00044383,120]
[330324065,1719258181238,-500.0,0.00044383,120]
[330324066,1719258181271,-500.0,0.00044383,120]
[330324067,1719258181304,-500.0,0.00044383,120]
[330324068,1719258181339,-10451.51,0.00044383,120]
[330324069,1719258181372,-500.0,0.00044383,120]
[330324070,1719258181405,-500.0,0.00044383,120]
[330324071,1719258181440,-6648.02,0.00044383,120]
[330324072,1719258181472,-500.0,0.00044383,120]
[330324073,1719258181506,-500.0,0.00044383,120]
[330324074,1719258181540,-5716.84,0.00044383,120]
[330324075,1719258181577,-639.21,0.00044383,120]
[330324076,1719258181613,-511.29,0.00044383,120]
[330324077,1719258181649,-1932.92,0.00044383,120]
[330324078,1719258181684,-542.44,0.00044383,120]
[330324079,1719258181722,-500.0,0.00044383,120]
[330324080,1719258181756,-603.28,0.00044383,120]
[330324081,1719258181792,-477.07077999,0.00044383,120]
[330324082,1719258181826,-500.0,0.00044383,120]
[330324083,1719258181860,-500.0,0.00044383,120]
[330324084,1719258181894,-15238.7,0.00044383,120]
[330324085,1719258181929,-500.0,0.00044383,120]
[330324086,1719258181962,-808.0,0.00044383,120]
[330324087,1719258181996,-209.52676821,0.00044383,120]
[330324088,1719258182030,-500.0,0.00044383,120]
[330324089,1719258182061,-9211.6,0.00044383,120]
[330324090,1719258182099,-500.0,0.00044383,120]
[330324091,1719258182134,-11837.0,0.00044383,120]
[330324092,1719258182169,-16339.78,0.00044383,120]
[330324093,1719258182203,-745.89,0.00044383,120]
[330324094,1719258182237,-500.0,0.00044383,120]
[330324095,1719258182271,-500.0,0.00044383,120]
[330324096,1719258182306,-990.35,0.00044383,120]
[330324097,1719258182339,-500.0,0.00044383,120]
[330324098,1719258182371,-500.0,0.00044383,120]
[330324099,1719258182403,-500.0,0.00044383,120]
[330324100,1719258182439,-500.0,0.00044383,120]
[330324101,1719258182473,-500.0,0.00044383,120]
[330324102,1719258182509,-500.0,0.00044383,120]
[330324103,1719258182543,-6686.2,0.00044383,120]
[330324104,1719258182576,-722.46,0.00044383,120]
[330324105,1719258182615,-1290.82,0.00044383,120]
[330324106,1719258182652,-8106.12,0.00044383,120]
[330324107,1719258182694,-11637.84,0.00044383,120]
[330324108,1719258182728,-500.0,0.00044383,120]
[330324109,1719258182760,-1923.93,0.00044383,120]
[330324110,1719258182792,-500.0,0.00044383,120]
[330324111,1719258182826,-1160.71,0.00044383,120]
[330324112,1719258182861,-954.57,0.00044383,120]
[330324113,1719258182896,-500.0,0.00044383,120]
[330324114,1719258182931,-1238.72,0.00044383,120]
[330324115,1719258182965,-500.0,0.00044383,120]
[330324116,1719258182999,-230.52884488,0.00044383,120]
[330324117,1719258183035,-500.0,0.00044383,120]
[330324118,1719258183069,-500.0,0.00044383,120]
[330324119,1719258183108,-1229.16,0.00044383,120]
[330324120,1719258183148,-500.0,0.00044383,120]
[330324121,1719258183185,-501.29,0.00044383,120]
[330324122,1719258183220,-500.0,0.00044383,120]
[330324123,1719258183255,-500.0,0.00044383,120]
[330324124,1719258183465,-680.6,0.00044383,120]
[330324125,1719258183501,-1518.93,0.00044383,120]
[330324126,1719258183538,-500.0,0.00044383,120]
[330324127,1719258183574,-500.0,0.00044383,120]
[330324128,1719258183610,-500.0,0.00044383,120]
[330324129,1719258183657,-660.18,0.00044383,120]
[330324130,1719258183698,-500.0,0.00044383,120]
[330324131,1719258183735,-734.75,0.00044383,120]
[330324132,1719258183768,-500.0,0.00044383,120]
[330324133,1719258183803,-500.0,0.00044383,120]
[330324134,1719258183838,-500.0,0.00044383,120]
[330324135,1719258183875,-1152.05,0.00044383,120]
[330324136,1719258183910,-537.71,0.00044383,120]
[330324137,1719258183948,-909.58,0.00044383,120]
[330324138,1719258183984,-500.0,0.00044383,120]
[330324139,1719258184019,-500.0,0.00044383,120]
[330324140,1719258184054,-1000.0,0.00044383,120]
[330324141,1719258184090,-7186.7,0.00044383,120]
[330324142,1719258184125,-8684.9,0.00044383,120]
[330324143,1719258184161,-622.96,0.00044383,120]
[330324144,1719258184200,-500.0,0.00044383,120]
[330324145,1719258184234,-1089.47,0.00044383,120]
[330324146,1719258184269,-562.13,0.00044383,120]
[330324147,1719258184305,-6508.15,0.00044383,120]
[330324148,1719258184341,-500.0,0.00044383,120]
[330324149,1719258184376,-500.0,0.00044383,120]
[330324150,1719258184411,-500.0,0.00044383,120]
[330324151,1719258184449,-500.0,0.00044383,120]
[330324152,1719258184486,-1056.03914821,0.00044383,120]
[330324153,1719258184519,-500.0,0.00044383,120]
[330324154,1719258184553,-500.0,0.00044383,120]
[330324155,1719258184588,-594.01,0.00044383,120]
[330324156,1719258184626,-199.03888983,0.00044383,120]
[330324157,1719258184664,-596.12,0.00044383,30]
[330324158,1719258184699,-1366.65,0.00044383,120]
[330324159,1719258184734,-532.81,0.00044383,120]
[330324160,1719258184769,-4072.65,0.00044383,120]
[330324161,1719258184805,-4424.98,0.00044383,120]
[330324162,1719258184842,-3276.93,0.00044383,120]
[330324163,1719258184880,-500.0,0.00044383,120]
[330324164,1719258184915,-539.55947804,0.00044383,120]
[330324165,1719258184954,-500.0,0.00044383,120]
[330324166,1719258184991,-500.0,0.00044383,120]
[330324167,1719258185027,-4229.0,0.00044383,120]
[330324168,1719258185064,-2670.65,0.00044383,120]
[330324169,1719258185099,-2835.37,0.00044383,120]
[330324170,1719258185134,-575.65,0.00044383,120]
[330324171,1719258185169,-500.0,0.00044383,120]
[330324172,1719258185202,-500.0,0.00044383,120]
[330324173,1719258185234,-1295.69,0.00044383,120]
[330324174,1719258185266,-500.0,0.00044383,120]
[330324175,1719258185301,-1533.9,0.00044383,120]
[330324176,1719258185334,-500.0,0.00044383,120]
[330324177,1719258185367,-500.0,0.00044383,120]
[330324178,1719258185400,-500.0,0.00044383,120]
[330324179,1719258185434,-1514.95,0.00044383,120]
[330324180,1719258185469,-5760.53,0.00044383,120]
[330324181,1719258185504,-21952.63,0.00044383,120]
[330324182,1719258185540,-1496.26,0.00044383,120]
[330324183,1719258185574,-833.92,0.00044383,120]
[330324184,1719258185610,-500.0,0.00044383,120]
[330324185,1719258185646,-1709.42,0.00044383,120]
[330324186,1719258185682,-1063.0,0.00044383,120]
[330324187,1719258185718,-4392.25,0.00044383,120]
[330324188,1719258185752,-1353.45,0.00044383,120]
[330324189,1719258185786,-611.03773278,0.00044383,120]
[330324190,1719258185821,-1164.26,0.00044383,120]
[330324191,1719258185857,-15843.25,0.00044383,120]
[330324192,1719258185892,-599.03,0.00044383,120]
[330324193,1719258185926,-5342.0,0.00044383,120]
[330324194,1719258185958,-500.0,0.00044383,120]
[330324195,1719258185991,-500.0,0.00044383,90]
[330324196,1719258186026,-3528.99,0.00044383,120]
[330324197,1719258186062,-500.0,0.00044383,120]
[330324198,1719258186097,-500.0,0.00044383,120]
[330324199,1719258186133,-500.0,0.00044383,120]
[330324200,1719258186170,-3948.04,0.00044383,120]
[330324201,1719258186203,-1406.68,0.00044383,120]
[330324202,1719258186236,-800.27,0.00044383,120]
[330324203,1719258186270,-500.0,0.00044383,120]
[330324204,1719258186302,-18014.52,0.00044383,120]
[330324205,1719258186336,-500.0,0.00044383,120]
[330324206,1719258186368,-1081.79,0.00044383,120]
[330324207,1719258186401,-8515.25,0.00044383,120]
[330324208,1719258186435,-500.0,0.00044383,120]
[330324209,1719258186469,-2099.61,0.00044383,120]
[330324210,1719258186503,-11323.74,0.00044383,120]
[330324211,1719258186540,-1227.33,0.00044383,120]
[330324212,1719258186574,-8263.86,0.00044383,120]
[330324213,1719258186608,-1743.76,0.00044383,120]
[330324214,1719258186648,-500.0,0.00044383,120]
[330324215,1719258186680,-500.0,0.00044383,120]
[330324216,1719258186715,-502.9566375,0.00044383,120]
[330324217,1719258186749,-1127.16,0.00044383,120]
[330324218,1719258186783,-500.0,0.00044383,120]
[330324219,1719258186816,-500.0,0.00044383,120]
[330324220,1719258186850,-500.0,0.00044383,120]
[330324221,1719258186884,-2016.78,0.00044383,120]
[330324222,1719258186921,-516.62,0.00044383,120]
[330324223,1719258186954,-1126.39,0.00044383,120]
[330324224,1719258186989,-500.0,0.00044383,120]
[330324225,1719258187024,-500.0,0.00044383,120]
[330324226,1719258187058,-1708.98,0.00044383,120]
[330324227,1719258187094,-500.0,0.00044383,120]
[330324228,1719258187128,-15215.37,0.00044383,120]
[330324229,1719258187328,-1099.7,0.00044383,120]
[330324230,1719258187362,-500.0,0.00044383,120]
[330324231,1719258187397,-1426.31,0.00044383,120]
[330324232,1719258187431,-500.0,0.00044383,120]
[330324233,1719258187466,-574.44,0.00044383,120]
[330324234,1719258187500,-1323.01,0.00044383,120]
[330324235,1719258187534,-1770.99,0.00044383,120]
[330324236,1719258187569,-500.0,0.00044383,120]
[330324237,1719258187603,-1186.42,0.00044383,120]
[330324238,1719258187639,-508.43,0.00044383,120]
[330324239,1719258187673,-886.44,0.00044383,120]
[330324240,1719258187706,-9855.22,0.00044383,120]
[330324241,1719258187739,-2024.38,0.00044383,120]
[330324242,1719258187772,-24321.78,0.00044383,120]
[330324243,1719258187806,-500.0,0.00044383,120]
[330324244,1719258187840,-500.0,0.00044383,120]
[330324245,1719258187875,-500.0,0.00044383,120]
[330324246,1719258187908,-2248.85,0.00044383,120]
[330324247,1719258187944,-500.0,0.00044383,120]
[330324248,1719258187979,-1193.42,0.00044383,120]
[330324249,1719258188014,-6708.77,0.00044383,120]
[330324250,1719258188048,-2029.01,0.00044383,120]
[330324251,1719258188083,-500.0,0.00044383,120]
[330324252,1719258188118,-1627.12,0.00044383,120]
[330324253,1719258188152,-994.14,0.00044383,120]
[330324254,1719258188185,-708.24,0.00044383,120]
[330324255,1719258188219,-608.64,0.00044383,120]
[330324256,1719258188254,-2446.82,0.00044383,120]
[330324257,1719258188288,-767.28,0.00044383,120]
[330324258,1719258188322,-716.11,0.00044383,120]
[330324259,1719258188357,-500.0,0.00044383,120]
[330324260,1719258188392,-500.0,0.00044383,120]
[330324261,1719258188426,-500.0,0.00044383,120]
[330324262,1719258188461,-1443.36,0.00044383,120]
[330324263,1719258188494,-609.82,0.00044383,120]
[330324264,1719258188527,-6401.94,0.00044383,120]
[330324265,1719258188562,-500.0,0.00044383,120]
[330324266,1719258188595,-500.0,0.00044383,90]
[330324267,1719258188631,-500.0,0.00044383,120]
[330324268,1719258188665,-861.71,0.00044383,120]
[330324269,1719258188701,-1411.55,0.00044383,120]
[330324270,1719258188736,-500.0,0.00044383,120]
[330324271,1719258188770,-500.0,0.00044383,120]
[330324272,1719258188803,-678.0,0.00044383,120]
[330324273,1719258188837,-959.44,0.00044383,120]
[330324274,1719258188870,-14849.4,0.00044383,120]
[330324275,1719258188903,-500.0,0.00044383,120]
[330324276,1719258188937,-500.0,0.00044383,120]
[330324277,1719258188971,-500.0,0.00044383,120]
[330324278,1719258189006,-1025.11,0.00044383,120]
[330324279,1719258189041,-4439.98,0.00044383,120]
[330324280,1719258189076,-500.0,0.00044383,120]
[330324281,1719258189113,-500.0,0.00044383,120]
[330324282,1719258189149,-3657.05,0.00044383,120]
[330324283,1719258189184,-643.67,0.00044383,120]
[330324284,1719258189218,-500.0,0.00044383,120]
[330324285,1719258189252,-500.0,0.00044383,120]
[330324286,1719258189289,-921.25,0.00044383,120]
[330324287,1719258189325,-500.0,0.00044383,120]
[330324288,1719258189360,-439.98197963,0.00044383,120]
[330324289,1719258220929,-230.66,0.0002199,30]
[330324290,1719258221039,-150.0,0.00027397,30]
[330324291,1719258221084,-150.0,0.00027534,30]
[330324292,1719258221126,-150.0,0.00027671,30]
[330324293,1719258221166,-150.0,0.00027808,30]
[330324294,1719258221206,-667.77792935,0.00027854,30]
[330324295,1719258221244,-1270.90182978,0.00027854,30]
[330324296,1719258221284,-1270.90182978,0.00027854,30]
[330324297,1719258221321,-667.77792935,0.00027854,30]
[330324298,1719258221360,-150.0,0.00027945,30]
[330324299,1719258221402,-150.0,0.00028082,30]
[330324300,1719258221440,-150.0,0.00028219,30]
[330324301,1719258221480,-150.0,0.00028356,30]
[330324302,1719258221519,-150.0,0.00028493,30]
[330324303,1719258221560,-150.0,0.0002863,30]
[330324304,1719258221600,-150.0,0.00028767,30]
[330324305,1719258221644,-150.0,0.00028904,30]
[330324306,1719258221686,-150.0,0.00029041,30]
[330324307,1719258221727,-150.0,0.00029178,30]
[330324308,1719258221764,-150.0,0.00029315,30]
[330324309,1719258221804,-150.0,0.00029452,30]
[330324310,1719258221845,-150.0,0.00029589,30]
[330324311,1719258221885,-150.0,0.00029726,30]
[330324312,1719258221930,-228.30350931,0.00029863,30]
[330324313,1719258222002,-1404.49121719,0.0003,60]
[330324314,1719258222059,-4000.0,0.00032877,30]
[330324315,1719258222112,-269.227,0.00042934,30]
[330324316,1719258222153,-160.64692513,0.00043694,30]
[330324317,1719258222195,-2000.0,0.00043781,30]
[330324318,1719258222235,-500.0,0.00043835,120]
[330324319,1719258222275,-500.0,0.00043835,120]
[330324320,1719258222316,-716.19,0.00043835,120]
[330324321,1719258222356,-673.44,0.00043835,120]
[330324322,1719258222396,-1809.76,0.00043835,120]
[330324323,1719258222436,-500.0,0.00043835,120]
[330324324,1719258222476,-1062.08,0.00043835,120]
[330324325,1719258222516,-500.0,0.00043835,120]
[330324326,1719258222556,-1023.54,0.00043835,120]
[330324327,1719258222599,-500.0,0.00043835,120]
[330324328,1719258222644,-534.28,0.00043835,120]
[330324329,1719258222681,-164.54220824,0.00043835,120]
[330324330,1719258222719,-500.0,0.00043835,120]
[330324331,1719258223053,-339.13840858,0.00043835,120]
[330324332,1719258223096,-841.28,0.00043835,120]
[330324333,1719258223137,-1199.38,0.00043835,120]
[330324334,1719258223174,-500.0,0.00043835,120]
[330324335,1719258223214,-500.0,0.00043835,120]
[330324336,1719258223253,-500.0,0.00043835,120]
[330324337,1719258223291,-500.0,0.00043835,120]
[330324338,1719258223331,-898.89,0.00043835,120]
[330324339,1719258223369,-909.82,0.00043835,120]
[330324340,1719258223408,-500.0,0.00043835,120]
[330324341,1719258223446,-829.07,0.00043835,120]
[330324342,1719258223485,-1703.05,0.00043835,120]
[330324343,1719258223522,-500.0,0.00043835,120]
[330324344,1719258223559,-1358.16,0.00043835,120]
[330324345,1719258223598,-500.0,0.00043835,120]
[330324346,1719258223639,-522.33,0.00043835,120]
[330324347,1719258223677,-206.81,0.00043835,120]
[330324348,1719258223715,-500.0,0.00043835,120]
[330324349,1719258223753,-530.54819462,0.00043835,120]
[330324350,1719258223791,-500.0,0.00043835,120]
[330324351,1719258223827,-1570.64,0.00043835,120]
[330324352,1719258223865,-40546.37,0.00043835,120]
[330324353,1719258223903,-758.34,0.00043835,120]
[330324354,1719258223941,-500.0,0.00043835,120]
[330324355,1719258223978,-5071.79,0.00043835,120]
[330324356,1719258224016,-500.0,0.00043835,120]
[330324357,1719258224059,-500.0,0.00043835,120]
[330324358,1719258224098,-8129.85,0.00043835,120]
[330324359,1719258224141,-1395.41,0.00043835,120]
[330324360,1719258224180,-520.52988529,0.00043835,30]
[330324361,1719258224225,-959.95,0.00043835,120]
[330324362,1719258224265,-1168.41,0.00043835,120]
[330324363,1719258224303,-214.35684358,0.00043835,60]
[330324364,1719258224359,-500.0,0.00043835,120]
[330324365,1719258224403,-516.95967684,0.00043835,120]
[330324366,1719258224445,-482.79597339,0.00043835,120]
[330324367,1719258224491,-3258.67,0.00044109,120]
[330324368,1719258224536,-500.0,0.00044109,120]
[330324369,1719258224577,-500.0,0.00044109,120]
[330324370,1719258224616,-716.19,0.00044109,120]
[330324371,1719258224658,-673.44,0.00044109,120]
[330324372,1719258224697,-1809.76,0.00044109,120]
[330324373,1719258224740,-500.0,0.00044109,120]
[330324374,1719258224779,-1062.08,0.00044109,120]
[330324375,1719258224817,-1023.54,0.00044109,120]
[330324376,1719258224862,-500.0,0.00044109,120]
[330324377,1719258224902,-534.28,0.00044109,120]
[330324378,1719258224940,-500.0,0.00044109,120]
[330324379,1719258224976,-841.28,0.00044109,120]
[330324380,1719258225015,-1199.38,0.00044109,120]
[330324381,1719258225053,-188.92,0.00044109,120]
[330324382,1719258225100,-500.0,0.00044109,120]
[330324383,1719258225150,-500.0,0.00044109,120]
[330324384,1719258225186,-500.0,0.00044109,120]
[330324385,1719258225224,-898.89,0.00044109,120]
[330324386,1719258225261,-909.82,0.00044109,120]
[330324387,1719258225297,-520.42,0.00044109,120]
[330324388,1719258225337,-829.07,0.00044109,120]
[330324389,1719258225375,-1703.05,0.00044109,120]
[330324390,1719258225415,-1358.16,0.00044109,120]
[330324391,1719258225456,-500.0,0.00044109,120]
[330324392,1719258225496,-522.33,0.00044109,120]
[330324393,1719258225534,-410.49289407,0.00044109,120]
[330324394,1719258225572,-1570.64,0.00044109,120]
[330324395,1719258225612,-40546.37,0.00044109,120]
[330324396,1719258225652,-758.34,0.00044109,120]
[330324397,1719258225690,-5071.79,0.00044109,120]
[330324398,1719258225728,-500.0,0.00044109,120]
[330324399,1719258225765,-500.0,0.00044109,120]
[330324400,1719258225802,-8129.85,0.00044109,120]
[330324401,1719258225842,-1395.41,0.00044109,120]
[330324402,1719258225883,-959.95,0.00044109,120]
[330324403,1719258225920,-1168.41,0.00044109,120]
[330324404,1719258225958,-500.0,0.00044109,120]
[330324405,1719258225996,-168.52898688,0.0004415,30]
[330324406,1719258226033,-60.01802037,0.00044383,120]
[330324407,1719258226070,-500.0,0.00044383,120]
[330324408,1719258226108,-500.0,0.00044383,120]
[330324409,1719258226146,-1522.85,0.00044383,120]
[330324410,1719258226184,-575.37,0.00044383,120]
[330324411,1719258226222,-566.76,0.00044383,120]
[330324412,1719258226259,-534.29830181,0.00044383,120]
[330324413,1719258226295,-500.0,0.00044383,120]
[330324414,1719258226333,-500.0,0.00044383,120]
[330324415,1719258226371,-500.0,0.00044383,120]
[330324416,1719258226408,-909.24,0.00044383,120]
[330324417,1719258226445,-757.63,0.00044383,120]
[330324418,1719258226482,-786.54,0.00044383,120]
[330324419,1719258226518,-1133.73,0.00044383,120]
[330324420,1719258226556,-606.66,0.00044383,120]
[330324421,1719258226596,-500.0,0.00044383,120]
[330324422,1719258226635,-500.0,0.00044383,120]
[330324423,1719258226674,-500.0,0.00044383,120]
[330324424,1719258226711,-500.0,0.00044383,120]
[330324425,1719258226750,-500.0,0.00044383,120]
[330324426,1719258226787,-500.0,0.00044383,120]
[330324427,1719258226825,-2697.16,0.00044383,120]
[330324428,1719258226865,-500.0,0.00044383,120]
[330324429,1719258226902,-500.0,0.00044383,120]
[330324430,1719258226939,-500.0,0.00044383,120]
[330324431,1719258226980,-648.35,0.00044383,120]
[330324432,1719258227019,-500.0,0.00044383,120]
[330324433,1719258227059,-3832.32,0.00044383,120]
[330324434,1719258227098,-500.0,0.00044383,120]
[330324435,1719258227142,-7738.66,0.00044383,120]
[330324436,1719258227396,-511.82,0.00044383,120]
[330324437,1719258227434,-500.0,0.00044383,120]
[330324438,1719258227472,-1651.64,0.00044383,120]
[330324439,1719258227510,-8679.15,0.00044383,120]
[330324440,1719258227548,-657.61,0.00044383,120]
[330324441,1719258227586,-782.34,0.00044383,120]
[330324442,1719258227625,-9116.37,0.00044383,120]
[330324443,1719258227669,-500.0,0.00044383,120]
[330324444,1719258227709,-3258.67,0.00044383,120]
[330324445,1719258227751,-500.0,0.00044383,120]
[330324446,1719258227787,-716.19,0.00044383,120]
[330324447,1719258227826,-500.0,0.00044383,120]
[330324448,1719258227865,-673.44,0.00044383,120]
[330324449,1719258227904,-1809.76,0.00044383,120]
[330324450,1719258227942,-500.0,0.00044383,120]
[330324451,1719258227981,-1062.08,0.00044383,120]
[330324452,1719258228021,-1023.54,0.00044383,120]
[330324453,1719258228066,-500.0,0.00044383,120]
[330324454,1719258228104,-534.28,0.00044383,120]
[330324455,1719258228142,-544.84048468,0.00044383,120]
[330324456,1719258228179,-841.28,0.00044383,120]
[330324457,1719258228218,-1199.38,0.00044383,120]
[330324458,1719258228256,-500.0,0.00044383,120]
[330324459,1719258228292,-500.0,0.00044383,120]
[330324460,1719258228327,-500.0,0.00044383,120]
[330324461,1719258228364,-898.89,0.00044383,120]
[330324462,1719258228401,-909.82,0.00044383,120]
[330324463,1719258228438,-829.07,0.00044383,120]
[330324464,1719258228474,-1703.05,0.00044383,120]
[330324465,1719258228511,-1358.16,0.00044383,120]
[330324466,1719258228547,-500.0,0.00044383,120]
[330324467,1719258228585,-522.33,0.00044383,120]
[330324468,1719258228621,-1570.64,0.00044383,120]
[330324469,1719258228663,-40546.37,0.00044383,120]
[330324470,1719258228700,-758.34,0.00044383,120]
[330324471,1719258228738,-5071.79,0.00044383,120]
[330324472,1719258228773,-500.0,0.00044383,120]
[330324473,1719258228810,-500.0,0.00044383,120]
[330324474,1719258228851,-8129.85,0.00044383,120]
[330324475,1719258228888,-1395.41,0.00044383,120]
[330324476,1719258228923,-959.95,0.00044383,120]
[330324477,1719258228959,-1168.41,0.00044383,120]
[330324478,1719258228997,-500.0,0.00044383,120]
[330324479,1719258229032,-716.33,0.00044384,120]
[330324480,1719258229071,-385.93,0.00044384,120]
[330324481,1719258229111,-1000.0,0.00044417,30]
[330324482,1719258229149,-1000.0,0.00044583,30]
[330324483,1719258229187,-500.0,0.00044657,120]
[330324484,1719258229224,-662.41,0.00044657,120]
[330324485,1719258229261,-500.0,0.00044657,120]
[330324486,1719258229298,-500.0,0.00044657,120]
[330324487,1719258229335,-500.0,0.00044657,120]
[330324488,1719258229391,-500.0,0.00044657,120]
[330324489,1719258229449,-500.0,0.00044657,120]
[330324490,1719258229510,-500.0,0.00044657,120]
[330324491,1719258229566,-500.0,0.00044657,120]
[330324492,1719258229631,-500.0,0.00044657,120]
[330324493,1719258229682,-500.0,0.00044657,120]
[330324494,1719258229732,-500.0,0.00044657,120]
[330324495,1719258229787,-500.0,0.00044657,120]
[330324496,1719258229840,-500.0,0.00044657,120]
[330324497,1719258229891,-500.0,0.00044657,120]
[330324498,1719258229942,-500.0,0.00044657,120]
[330324499,1719258229994,-518.57366323,0.00044657,120]
[330324500,1719258230048,-500.0,0.00044657,120]
[330324501,1719258230101,-492.11384294,0.00044657,120]
[330324502,1719258230154,-703.65,0.00044657,120]
[330324503,1719258230207,-574.53,0.00044657,120]
[330324504,1719258230258,-500.0,0.00044657,120]
[330324505,1719258230309,-500.0,0.00044657,120]
[330324506,1719258230362,-500.0,0.00044657,120]
[330324507,1719258230415,-500.0,0.00044657,120]
[330324508,1719258230465,-500.0,0.00044657,120]
[330324509,1719258230514,-500.0,0.00044657,120]
[330324510,1719258230567,-314.01337202,0.00044657,120]
[330324511,1719258230619,-500.0,0.00044657,120]
[330324512,1719258230672,-500.0,0.00044657,120]
[330324513,1719258230725,-500.0,0.00044657,120]
[330324514,1719258230764,-500.0,0.00044657,120]
[330324515,1719258230802,-500.0,0.00044657,120]
[330324516,1719258230843,-500.0,0.00044657,120]
[330324517,1719258230880,-500.0,0.00044657,120]
[330324518,1719258230920,-1500.0,0.00044657,120]
[330324519,1719258230958,-531.7,0.00044657,120]
[330324520,1719258230995,-557.88,0.00044657,120]
[330324521,1719258231034,-500.0,0.00044657,120]
[330324522,1719258231073,-500.0,0.00044657,120]
[330324523,1719258231113,-533.67,0.00044657,120]
[330324524,1719258231149,-783.5,0.00044657,120]
[330324525,1719258231188,-526.81771018,0.00044657,120]
[330324526,1719258231227,-1253.81,0.00044657,120]
[330324527,1719258231266,-500.0,0.00044657,120]
[330324528,1719258231304,-500.0,0.00044657,120]
[330324529,1719258231344,-500.0,0.00044657,120]
[330324530,1719258231384,-1270.42,0.00044657,120]
[330324531,1719258231423,-900.35,0.00044657,120]
[330324532,1719258231462,-500.0,0.00044657,120]
[330324533,1719258231503,-500.0,0.00044657,120]
[330324534,1719258231543,-500.0,0.00044657,120]
[330324535,1719258231581,-525.10436306,0.00044657,120]
[330324536,1719258231625,-500.0,0.00044657,120]
[330324537,1719258231667,-500.0,0.00044657,120]
[330324538,1719258231707,-500.0,0.00044657,120]
[330324539,1719258231746,-500.0,0.00044657,120]
[330324540,1719258231785,-1708.9,0.00044657,120]
[330324541,1719258232410,-500.0,0.00044657,120]
[330324542,1719258232467,-500.0,0.00044657,120]